bitfinex/quotes_ETHUSD_20240604
["timestamp","ask_amount","ask_price","bid_price","bid_amount"]
[1717489614876,5.04447,3775.0,3774.2,4.36923475]
[1717489615048,5.04447,3775.0,3774.3,0.92067475]
[1717489616088,5.04447,3775.0,3774.4,0.92066275]
[1717489616237,5.04447,3775.0,3774.2,3.44856]
[1717489616575,5.04447,3775.0,3774.3,0.92066283]
[1717489617245,5.04447,3775.0,3774.2,3.44856]
[1717489617450,5.04447,3775.0,3774.3,0.92066294]
[1717489620944,5.04447,3775.0,3774.4,0.799]
[1717489621138,2.3954,3775.0,3774.5,3.57000359]
[1717489621346,2.3356,3775.3,3774.8,0.799]
[1717489621542,2.3356,3775.3,3774.9,1.35753376]
[1717489621880,2.3356,3775.3,3774.9,0.4368858]
[1717489623779,2.4072,3775.5,3774.9,0.4368858]
[1717489626054,2.64857,3775.7,3775.4,0.799]
[1717489626258,2.3519,3775.9,3775.2,0.799]
[1717489626892,2.3519,3775.9,3775.3,0.92037678]
[1717489627697,2.3519,3775.9,3775.2,0.799]
[1717489629028,2.3519,3775.9,3775.2,3.2909]
[1717489629215,4.94478,3776.2,3775.4,0.799]
[1717489629520,4.94478,3776.2,3775.4,1.2358858]
[1717489631929,4.94478,3776.2,3775.6,0.799]
[1717489632649,4.94478,3776.2,3775.4,1.2358858]
[1717489640429,3.58066859,3777.2,3775.4,0.4368858]
[1717489640629,3.58066859,3777.2,3776.1,0.799]
[1717489640630,3.1641,3777.1,3776.1,0.799]
[1717489640830,2.4157,3777.0,3776.1,0.799]
[1717489641580,3.2147,3777.0,3776.1,0.799]
[1717489641875,5.86232,3777.0,3776.1,0.799]
[1717489642430,2.2902,3776.9,3775.9,3.44737]
[1717489642636,2.2902,3776.9,3775.9,3.96032507]
[1717489643394,3.0,3777.6,3775.9,2.64837]
[1717489643395,2.4052,3776.7,3775.9,2.64837]
[1717489643580,2.4052,3776.5,3775.5,2.64859]
[1717489643781,2.3041,3776.0,3775.2,7.32]
[1717489644090,0.799,3775.4,3775.2,7.32]
[1717489644317,0.799,3775.4,3774.7,2.64915]
[1717489644318,2.3717,3775.3,3774.7,9.96915]
[1717489644478,0.799,3775.2,3774.7,7.32]
[1717489644658,2.3717,3775.1,3774.3,2.64946]
[1717489645665,0.799,3775.0,3774.3,2.64946]
[1717489646580,0.799,3775.0,3774.2,7.32]
[1717489653189,2.64909,3774.9,3774.2,7.32]
[1717489653410,2.374,3774.8,3774.2,7.32]
[1717489654594,2.64909,3774.9,3774.2,3.1382]
[1717489654794,2.64909,3774.9,3774.3,0.35530224]
[1717489655687,2.64909,3774.9,3774.4,0.799]
[1717489655870,2.4654,3775.1,3774.4,0.799]
[1717489658151,3.2644,3775.1,3774.3,0.35530224]
[1717489659156,2.4654,3775.1,3774.3,0.35530224]
[1717489659451,2.4654,3775.1,3774.4,0.42186547]
[1717489660250,2.4654,3775.1,3774.4,1.22086547]
[1717489663639,2.4654,3775.1,3774.5,2.64935]
[1717489663843,2.3683,3775.6,3774.8,0.799]
[1717489664023,2.869987,3775.6,3774.8,0.799]
[1717489664222,2.3683,3775.6,3774.8,0.799]
[1717489665066,2.3683,3775.6,3774.8,3.2904]
[1717489667303,2.3683,3775.6,3775.0,0.799]
[1717489667597,2.64857,3775.7,3775.0,0.799]
[1717489667751,2.2989,3775.9,3775.2,0.799]
[1717489668761,2.2989,3775.9,3775.2,3.44781]
[1717489670789,5.73717,3776.1,3775.3,2.4869]
[1717489671961,3.44727,3776.1,3775.3,2.4869]
[1717489672166,2.64827,3776.1,3775.3,2.4869]
[1717489675502,2.64827,3776.1,3775.4,2.64872]
[1717489679890,0.799,3776.3,3775.4,2.64872]
[1717489679891,0.799,3776.3,3775.4,3.44772]
[1717489680823,5.03351,3776.5,3775.4,3.44772]
[1717489681171,5.03351,3776.5,3775.7,2.6485]
[1717489681371,5.03351,3776.5,3775.8,2.3715]
[1717489681556,5.83251,3776.5,3775.8,2.3715]
[1717489682266,5.03351,3776.5,3775.8,2.3715]
[1717489682478,5.03351,3776.5,3775.8,2.9534]
[1717489682689,2.64801,3776.5,3775.8,2.9534]
[1717489683386,0.799,3776.7,3775.8,2.9534]
[1717489683963,2.4672,3776.8,3775.8,2.9534]
[1717489684163,2.64773,3776.9,3775.9,2.64834]
[1717489684365,3.44673,3776.9,3776.0,1.16694087]
[1717489684975,3.44673,3776.9,3776.0,0.36794087]
[1717489686222,2.64773,3776.9,3776.0,1.16694087]
[1717489686423,2.64773,3776.9,3776.1,2.64822]
[1717489686626,2.64773,3776.9,3776.2,0.38151609]
[1717489686794,2.64773,3776.9,3776.3,2.2988]
[1717489691583,2.3091,3777.0,3776.3,2.2988]
[1717489691920,0.799,3777.1,3776.3,2.2988]
[1717489692342,2.3691,3777.2,3776.3,2.2988]
[1717489692548,3.1681,3777.2,3776.3,3.672402]
[1717489694077,2.3691,3777.2,3776.3,3.672402]
[1717489694210,2.3691,3777.2,3776.4,2.64802]
[1717489695638,2.64743,3777.3,3776.5,0.799]
[1717489696448,2.64743,3777.3,3776.6,0.05295239]
[1717489696949,2.64743,3777.3,3776.5,0.799]
[1717489697162,2.64743,3777.3,3776.5,1.17423887]
[1717489698171,2.64743,3777.3,3776.5,0.37523887]
[1717489698696,2.64743,3777.3,3776.6,2.64786]
[1717489701257,2.64743,3777.3,3776.7,2.3301]
[1717489705190,0.799,3777.4,3776.7,2.3301]
[1717489705396,0.799,3777.5,3776.7,2.904702]
[1717489706148,0.799,3777.5,3776.7,2.3301]
[1717489706451,2.64732,3777.4,3776.7,2.3301]
[1717489706647,0.799,3777.3,3776.7,2.3301]
[1717489708496,0.799,3777.3,3776.6,2.64786]
[1717489708881,2.64732,3777.4,3776.6,2.64786]
[1717489712622,1.391182,3777.3,3776.6,2.64786]
[1717489712788,0.799,3777.1,3776.3,7.32]
[1717489714214,0.799,3777.3,3776.3,8.119]
[1717489715021,2.64747,3777.2,3776.3,8.119]
[1717489715516,2.64747,3777.2,3776.3,7.32]
[1717489715881,2.64704,3777.8,3776.3,7.32]
[1717489715882,5.13998,3776.9,3776.3,7.32]
[1717489716081,5.13998,3776.9,3776.2,4.9942]
[1717489717438,5.13998,3776.9,3776.0,0.799]
[1717489719415,2.64768,3776.9,3776.2,0.799]
[1717489719581,2.64768,3776.9,3776.3,2.3403]
[1717489724723,5.87012,3777.3,3776.3,4.98836]
[1717489724939,5.07112,3777.3,3776.4,0.799]
[1717489725092,5.07112,3777.3,3776.5,0.578736]
[1717489725800,2.64742,3777.3,3776.5,0.578736]
[1717489731462,2.3655,3777.2,3776.3,2.64806]
[1717489735311,2.64754,3777.1,3776.3,2.64806]
[1717489735516,2.2824,3777.0,3776.3,2.64806]
[1717489746458,2.2824,3777.0,3776.4,0.92014818]
[1717489747484,2.2824,3777.0,3776.3,2.64806]
[1717489756018,2.2824,3777.0,3776.4,0.92012177]
[1717489756470,2.2824,3777.0,3776.3,2.64806]
[1717489757057,2.2824,3777.0,3776.4,0.92014165]
[1717489757951,2.2824,3777.0,3776.3,2.64806]
[1717489758377,2.2824,3777.0,3776.4,0.92014509]
[1717489759789,2.2824,3777.0,3776.4,2.34935696]
[1717489759978,2.2824,3777.0,3776.5,0.92009513]
[1717489760134,2.2824,3777.0,3776.4,1.42921187]
[1717489760482,2.2824,3777.0,3776.5,0.92009021]
[1717489762186,2.2557,3777.3,3776.5,3.56797021]
[1717489762371,2.2557,3777.3,3776.6,2.0387039]
[1717489762591,2.2557,3777.3,3776.7,0.9200749]
[1717489765065,2.2557,3777.3,3776.6,1.118629]
[1717489765376,2.2557,3777.3,3776.7,0.92001597]
[1717489765769,2.2557,3777.3,3776.5,4.02790188]
[1717489766099,2.2557,3777.3,3776.6,0.92003384]
[1717489767181,0.570202,3777.2,3776.6,0.92003384]
[1717489767364,2.2557,3777.3,3776.6,0.92003384]
[1717489767910,2.2557,3777.3,3776.5,2.64788]
[1717489768266,2.3898,3777.1,3776.4,1.38002188]
[1717489768462,2.3898,3777.1,3776.3,7.87472579]
[1717489768463,0.799,3777.0,3776.3,7.32]
[1717489768767,2.3898,3776.9,3776.3,7.32]
[1717489768966,2.3898,3776.9,3776.1,2.64818]
[1717489769165,2.3898,3776.9,3776.2,0.92017501]
[1717489770378,2.3898,3776.9,3776.1,2.64818]
[1717489775502,3.1888,3776.9,3776.1,2.64818]
[1717489776044,2.3412,3776.8,3776.1,2.64818]
[1717489779151,1.66730521,3777.5,3776.1,2.64818]
[1717489779152,5.03876,3777.3,3776.1,2.64818]
[1717489779359,2.64757,3777.1,3776.1,2.64818]
[1717489779516,2.64768,3776.9,3776.2,1.71916796]
[1717489779865,2.2535,3776.8,3776.1,2.64818]
[1717489780052,2.2535,3776.8,3776.2,0.92015444]
[1717489781143,2.2535,3776.8,3776.1,2.64818]
[1717489784056,2.64782,3776.7,3776.0,1.38028147]
[1717489784265,2.64782,3776.7,3776.0,2.3004841]
[1717489784567,2.64782,3776.7,3776.0,3.0994841]
[1717489784857,2.64782,3776.7,3776.1,0.92020263]
[1717489785923,2.2535,3776.8,3776.1,0.92020263]
[1717489786212,2.2535,3776.8,3776.2,0.799]
[1717489786515,2.2535,3776.8,3776.3,0.92010929]
[1717489789822,2.2535,3776.8,3776.2,3.44714]
[1717489790018,2.2535,3776.8,3776.3,0.92012701]
[1717489790610,2.2535,3776.8,3776.3,1.55034544]
[1717489790810,2.2535,3776.8,3776.3,0.63021843]
[1717489792025,5.13219,3777.1,3776.3,0.63021843]
[1717489797294,5.13219,3777.1,3776.2,2.64814]
[1717489798104,2.4223,3776.9,3776.2,2.64814]
[1717489798706,2.64774,3776.8,3776.0,1.38018468]
[1717489798914,2.3207,3776.7,3776.0,0.92018012]
[1717489799121,2.3207,3776.7,3775.9,7.32]
[1717489799321,2.3207,3776.7,3776.0,0.92022627]
[1717489800843,2.3107,3776.5,3776.0,0.92022627]
[1717489800994,2.3107,3776.5,3775.9,7.32]
[1717489801617,2.6481,3776.3,3775.4,7.87472579]
[1717489801857,0.799,3776.1,3775.5,0.92031643]
[1717489802068,0.799,3776.1,3775.4,7.32]
[1717489804541,2.67331,3776.2,3775.4,7.32]
[1717489804741,3.2075,3776.2,3775.4,7.32]
[1717489805714,2.4085,3776.2,3775.4,7.32]
[1717489809383,2.64825,3776.1,3775.4,7.32]
[1717489809895,3.44725,3776.1,3775.4,7.32]
[1717489812487,2.64825,3776.1,3775.4,8.119]
[1717489812864,2.64825,3776.1,3775.4,0.799]
[1717489813252,2.4085,3776.2,3775.4,3.2404]
[1717489813441,2.4085,3776.2,3775.5,2.6486]
[1717489813646,2.4593,3776.4,3775.6,0.799]
[1717489819576,2.4593,3776.4,3775.5,2.6486]
[1717489819817,2.4593,3776.4,3775.6,0.5889]
[1717489820027,0.799,3776.3,3775.5,2.6486]
[1717489821136,2.4588,3776.0,3775.2,0.799]
[1717489822508,2.4588,3776.0,3775.1,2.64889]
[1717489822717,2.4588,3776.0,3775.2,0.799]
[1717489831033,2.4588,3776.0,3775.4,3.44772]
[1717489831251,2.4588,3776.0,3775.4,4.037202]
[1717489835185,2.4588,3776.0,3775.4,2.64872]
[1717489845500,2.4588,3776.0,3775.5,0.92036945]
[1717489848356,0.799,3776.5,3775.5,0.92036945]
[1717489848492,3.1726,3776.5,3775.6,3.56890945]
[1717489848698,3.1726,3776.5,3775.7,0.92036945]
[1717489850600,2.3736,3776.5,3775.7,0.92036945]
[1717489852143,3.44689,3776.6,3775.7,0.92036945]
[1717489852144,0.799,3776.4,3775.7,0.92036945]
[1717489852300,2.388,3776.3,3775.7,0.92036945]
[1717489853400,2.388,3776.3,3775.6,2.64854]
[1717489858337,2.388,3776.3,3775.6,3.18681458]
[1717489858539,2.388,3776.3,3775.7,0.92029349]
[1717489861098,2.388,3776.3,3775.6,3.18681458]
[1717489861303,3.187,3776.3,3775.7,0.92031109]
[1717489861539,2.4028,3776.2,3775.6,2.64854]
[1717489862044,2.4028,3776.2,3775.3,4.58398227]
[1717489862235,2.4028,3776.2,3775.4,0.92033024]
[1717489862539,2.4028,3776.2,3775.5,0.92033024]
[1717489862704,2.4028,3776.2,3775.6,0.92033714]
[1717489862905,2.4028,3776.2,3775.4,0.92033714]
[1717489863136,2.4028,3776.2,3775.5,0.92033669]
[1717489863444,2.4028,3776.2,3775.6,0.92033669]
[1717489863625,2.4028,3776.2,3775.3,5.3830215]
[1717489863823,2.4028,3776.2,3775.4,0.92033282]
[1717489864019,2.4028,3776.2,3775.5,0.92033282]
[1717489864414,2.4028,3776.2,3775.6,0.92033282]
[1717489864643,2.4028,3776.2,3775.7,0.92033282]
[1717489864939,2.4028,3776.2,3775.4,1.9352315]
[1717489865146,2.4028,3776.2,3775.5,3.47704377]
[1717489865352,2.4028,3776.2,3775.6,0.92030125]
[1717489865548,2.4028,3776.2,3775.7,0.92030125]
[1717489865739,2.4028,3776.2,3775.5,1.17623681]
[1717489865940,2.4028,3776.2,3775.6,0.92029529]
[1717489866815,2.4028,3776.2,3775.7,0.92029529]
[1717489867015,2.4028,3776.2,3775.5,0.55472579]
[1717489867253,2.4028,3776.2,3775.6,0.92030436]
[1717489868550,2.4028,3776.2,3775.7,2.6485]
[1717489868956,2.4028,3776.2,3775.8,0.92024897]
[1717489873279,2.4028,3776.2,3775.7,2.6485]
[1717489873474,2.4028,3776.2,3775.8,0.9202526]
[1717489874611,2.4028,3776.2,3775.7,2.6485]
[1717489874820,2.4028,3776.2,3775.8,0.9202646]
[1717489875027,2.4028,3776.2,3775.7,2.6485]
[1717489879016,2.4028,3776.2,3775.5,0.55472579]
[1717489879306,2.4028,3776.2,3775.6,0.9202918]
[1717489879810,2.4028,3776.2,3775.7,0.9202918]
[1717489880101,2.4028,3776.2,3775.4,5.38287361]
[1717489880309,2.4028,3776.2,3775.5,0.92030451]
[1717489880510,2.4028,3776.2,3775.6,0.92030451]
[1717489880716,2.4028,3776.2,3775.7,0.92030451]
[1717489880918,2.4028,3776.2,3775.4,5.38287361]
[1717489881221,2.4028,3776.2,3775.5,0.92031681]
[1717489883502,2.4028,3776.2,3775.6,0.92031681]
[1717489883688,2.4028,3776.2,3775.7,0.92031681]
[1717489883889,2.4028,3776.2,3775.4,4.00244579]
[1717489884115,2.4028,3776.2,3775.5,0.9203096]
[1717489884323,2.4028,3776.2,3775.6,0.9203096]
[1717489884820,2.4028,3776.2,3775.7,0.92031002]
[1717489884989,2.4028,3776.2,3775.4,5.38287361]
[1717489885416,2.4028,3776.2,3775.5,0.92031001]
[1717489885616,2.4028,3776.2,3775.6,0.92031001]
[1717489886018,2.4028,3776.2,3775.7,0.92031001]
[1717489886177,2.4028,3776.2,3775.4,5.3829108]
[1717489886376,2.64816,3776.2,3775.5,0.92031201]
[1717489886634,2.2961,3776.1,3775.5,0.92031201]
[1717489888002,2.64831,3776.0,3775.5,0.92031201]
[1717489888214,2.4537,3775.9,3775.6,0.92031201]
[1717489888544,2.4537,3775.9,3775.3,1.9351908]
[1717489888700,2.4537,3775.9,3775.4,0.92034357]
[1717489889043,2.4537,3775.9,3775.5,0.92034357]
[1717489889331,2.4537,3775.9,3775.3,1.9351908]
[1717489889515,2.4537,3775.9,3775.4,0.9203402]
[1717489889712,2.4537,3775.9,3775.5,0.9203402]
[1717489889914,2.4537,3775.9,3775.3,1.9351908]
[1717489889915,2.4537,3775.9,3775.6,0.9203402]
[1717489890252,2.4537,3775.9,3775.3,1.9351908]
[1717489890384,2.4537,3775.9,3775.4,0.92033051]
[1717489890584,2.4537,3775.9,3775.5,0.92033051]
[1717489890789,2.4537,3775.9,3775.3,1.9351908]
[1717489890987,2.4537,3775.9,3775.4,0.92034049]
[1717489891289,2.4537,3775.9,3775.5,0.92034049]
[1717489891652,2.4537,3775.9,3775.3,1.9351908]
[1717489891818,2.4537,3775.9,3775.4,0.9203329]
[1717489892013,2.4537,3775.9,3775.5,0.9203329]
[1717489892191,2.4537,3775.9,3775.3,1.9351908]
[1717489892393,2.4537,3775.9,3775.4,0.92034289]
[1717489892616,2.4537,3775.9,3775.5,0.92034289]
[1717489892819,2.4537,3775.9,3775.3,1.9351908]
[1717489892820,2.4537,3775.9,3775.6,0.92034289]
[1717489893027,2.4537,3775.9,3775.3,1.9351908]
[1717489893227,2.4537,3775.9,3775.4,0.92034404]
[1717489893425,2.4537,3775.9,3775.5,0.92034404]
[1717489893614,2.4537,3775.9,3775.3,1.9351908]
[1717489893829,2.4537,3775.9,3775.4,0.92034346]
[1717489894158,2.4537,3775.9,3775.5,0.92034346]
[1717489894439,2.4537,3775.9,3775.3,1.9351908]
[1717489894440,2.4537,3775.9,3775.6,0.92034346]
[1717489894658,2.4537,3775.9,3775.3,1.9351908]
[1717489894799,2.4537,3775.9,3775.3,0.55472579]
[1717489895000,2.4537,3775.9,3775.4,0.92034069]
[1717489895647,2.4537,3775.9,3775.5,0.92034069]
[1717489895805,2.4537,3775.9,3775.6,0.92034069]
[1717489896157,2.4537,3775.9,3775.3,1.93523683]
[1717489896456,2.4537,3775.9,3775.4,0.92033431]
[1717489896604,2.4537,3775.9,3775.5,0.92033431]
[1717489896804,2.4537,3775.9,3775.3,1.93523683]
[1717489897022,2.4537,3775.9,3775.4,0.9203388]
[1717489897195,2.4537,3775.9,3775.5,0.9203388]
[1717489897396,2.4537,3775.9,3775.3,1.93523683]
[1717489897600,2.4537,3775.9,3775.4,0.92033879]
[1717489897801,2.4537,3775.9,3775.5,0.92033879]
[1717489898079,2.4537,3775.9,3775.6,0.92033879]
[1717489898360,2.4537,3775.9,3775.3,1.93523683]
[1717489898666,2.4537,3775.9,3775.4,0.92033808]
[1717489898822,2.4537,3775.9,3775.5,0.92033808]
[1717489899005,2.4537,3775.9,3775.3,1.93523683]
[1717489899213,2.4537,3775.9,3775.4,0.9203382]
[1717489899414,2.4537,3775.9,3775.5,0.9203382]
[1717489899621,2.4537,3775.9,3775.3,1.93523683]
[1717489899972,2.4537,3775.9,3775.4,0.92036581]
[1717489900279,2.4537,3775.9,3775.3,1.38051104]
[1717489900427,2.4537,3775.9,3775.4,0.92040634]
[1717489900622,2.4537,3775.9,3775.2,2.6488]
[1717489900882,2.4537,3775.9,3775.3,0.9204129]
[1717489907044,2.4537,3775.9,3775.4,0.92038937]
[1717489907248,2.4537,3775.9,3775.2,2.6488]
[1717489907448,2.4537,3775.9,3775.3,0.92038926]
[1717489911343,2.4537,3775.9,3775.2,2.6488]
[1717489911713,2.4537,3775.9,3775.3,0.92041492]
[1717489911966,2.4537,3775.9,3775.2,2.6488]
[1717489912133,2.4537,3775.9,3775.3,0.92041494]
[1717489913275,2.4537,3775.9,3775.2,2.6488]
[1717489913476,2.4537,3775.9,3775.3,0.92041135]
[1717489914545,2.4537,3775.9,3775.2,2.6488]
[1717489914746,2.4537,3775.9,3775.3,0.92041947]
[1717489915557,2.4537,3775.9,3775.2,2.6488]
[1717489915926,2.4537,3775.9,3775.3,0.92042302]
[1717489916843,3.0607,3775.6,3775.1,1.38062905]
[1717489917036,3.0607,3775.6,3775.0,7.32]
[1717489920464,2.64873,3775.4,3775.0,7.32]
[1717489920668,0.799,3775.2,3775.0,7.32]
[1717489920872,2.3734,3775.1,3774.4,7.87472579]
[1717489921067,2.3734,3775.1,3774.3,12.18]
[1717489921068,0.799,3775.0,3774.5,0.92058026]
[1717489921273,2.3579,3774.9,3774.2,0.55472579]
[1717489921504,2.3579,3774.9,3774.2,0.92060158]
[1717489923582,2.3579,3774.9,3774.1,4.03047202]
[1717489924381,2.3579,3774.9,3774.1,2.64959]
[1717489925621,2.3579,3774.9,3774.1,3.44859]
[1717489925900,0.799,3774.2,3774.0,7.32]
[1717489926769,2.3859,3774.3,3774.0,7.32]
[1717489930053,2.3859,3774.3,3773.7,0.018648]
[1717489932563,3.1849,3774.3,3773.7,0.018648]
[1717489934815,2.3859,3774.3,3773.7,0.018648]
[1717489934982,0.799,3774.0,3773.7,0.018648]
[1717489935303,2.64958,3774.2,3773.7,0.018648]
[1717489935304,0.799,3773.8,3773.7,0.018648]
[1717489937883,2.3581,3773.9,3773.7,0.018648]
[1717489938088,2.2697,3774.3,3773.7,0.817648]
[1717489938594,2.2697,3774.3,3773.7,0.018648]
[1717489940614,5.07923,3774.6,3773.8,2.64983]
[1717489942884,0.799,3773.9,3773.7,0.018648]
[1717489943325,2.2846,3773.8,3773.7,0.018648]
[1717489952245,3.0836,3773.8,3773.7,0.018648]
[1717489960636,2.2846,3773.8,3773.7,0.018648]
[1717489960840,3.0836,3773.8,3773.7,0.018648]
[1717489961013,3.60284765,3773.8,3773.7,0.018648]
[1717489961655,2.64975,3774.0,3773.7,0.018648]
[1717489963856,3.44847,3774.4,3773.7,0.018648]
[1717489965518,0.799,3774.2,3773.7,0.018648]
[1717489981608,3.1019,3774.0,3773.7,0.018648]
[1717489981784,0.575154,3773.9,3773.7,0.018648]
[1717489983755,2.64984,3773.8,3773.7,0.018648]
[1717489984048,3.44884,3773.8,3773.7,0.018648]
[1717489991191,2.64984,3773.8,3773.7,0.018648]
[1717489992320,0.799,3774.1,3773.7,0.018648]
[1717489992490,2.64962,3774.2,3773.7,0.018648]
[1717489992816,0.799,3774.5,3773.7,0.018648]
[1717489992983,0.799,3774.5,3773.8,2.3487]
[1717489995624,2.64934,3774.6,3773.8,2.3487]
[1717489995791,3.44834,3774.6,3773.8,2.3487]
[1717489996285,2.64934,3774.6,3773.8,2.9303378]
[1717489996687,3.44834,3774.6,3773.8,2.9303378]
[1717489997927,2.64934,3774.6,3773.8,2.9303378]
[1717489998135,3.44834,3774.6,3773.8,2.9303378]
[1717489998493,2.64934,3774.6,3773.8,2.9303378]
[1717489998721,3.44834,3774.6,3773.9,0.29489858]
[1717490000133,3.44834,3774.6,3773.8,2.3487]
[1717490000634,0.799,3774.4,3773.8,2.3487]
[1717490000826,2.64934,3774.6,3773.8,4.99853]
[1717490001028,0.799,3774.3,3773.8,4.99853]
[1717490001215,0.799,3774.5,3773.8,4.99853]
[1717490003665,2.64934,3774.6,3773.8,5.5002478]
[1717490004565,2.64905,3775.0,3774.2,2.4875]
[1717490004768,0.799,3774.9,3774.2,2.4875]
[1717490013421,2.64905,3775.0,3774.2,2.4875]
[1717490013629,0.799,3774.9,3774.3,0.44812307]
[1717490014684,2.64905,3775.0,3774.3,0.44812307]
[1717490015184,3.44805,3775.0,3774.3,0.44812307]
[1717490015920,2.64905,3775.0,3774.3,0.44812307]
[1717490016133,3.44805,3775.0,3774.3,0.44812307]
[1717490017035,2.64905,3775.0,3774.3,0.44812307]
[1717490017795,5.4017,3775.5,3774.2,2.4875]
[1717490017796,2.64877,3775.4,3774.5,2.4886]
[1717490017999,2.64849,3775.8,3774.6,3.44827]
[1717490018216,3.799,3775.7,3774.7,2.3154]
[1717490018519,4.11048133,3775.7,3774.7,2.3154]
[1717490019361,2.64849,3775.8,3774.8,2.64914]
[1717490019496,0.799,3776.0,3775.1,2.3154]
[1717490020257,0.799,3776.0,3775.1,3.1144]
[1717490020746,0.799,3776.0,3775.1,2.3154]
[1717490021341,1.143721,3776.0,3775.1,2.3154]
[1717490021513,0.799,3775.8,3775.1,2.3154]
[1717490035727,2.64838,3775.9,3775.1,2.3154]
[1717490035927,0.799,3775.8,3775.1,2.3154]
[1717490038636,0.799,3775.4,3774.8,2.4849]
[1717490039452,0.799,3775.6,3774.8,2.4849]
[1717490039653,2.64868,3775.5,3774.8,2.4849]
[1717490040867,0.799,3775.4,3774.8,2.4849]
[1717490041459,2.6488,3775.3,3774.7,7.32]
[1717490042408,2.64893,3775.1,3774.7,7.32]
[1717490042670,0.799,3774.8,3774.7,7.32]
[1717490042839,0.799,3774.8,3774.2,2.3001]
[1717490042840,3.44815,3774.8,3774.2,2.3001]
[1717490043045,0.344815,3774.7,3774.2,2.3001]
[1717490043245,0.799,3774.6,3774.2,2.3001]
[1717490043480,0.799,3774.6,3774.0,7.32]
[1717490043695,0.799,3774.4,3774.0,7.32]
[1717490044282,0.799,3774.2,3773.7,0.018648]
[1717490044792,0.799,3774.0,3773.7,0.018648]
[1717490050825,0.799,3773.8,3773.7,0.018648]
[1717490051809,3.44884,3773.8,3773.7,0.018648]
[1717490052582,2.64984,3773.8,3773.7,0.018648]
[1717490054827,2.994724,3773.8,3773.7,0.018648]
[1717490055012,3.793724,3773.8,3773.7,0.018648]
[1717490055218,2.994724,3773.8,3773.7,0.018648]
[1717490055433,2.64984,3773.8,3773.7,0.018648]
[1717490057519,0.799,3774.1,3773.7,0.018648]
[1717490068299,2.64972,3774.0,3773.7,0.018648]
[1717490069808,0.799,3773.9,3773.7,0.018648]
[1717490072338,2.64984,3773.8,3773.7,0.018648]
[1717490073641,3.220684,3773.8,3773.7,0.018648]
[1717490081255,3.21930582,3773.8,3773.7,0.018648]
[1717490084038,5.65690582,3773.8,3773.7,0.018648]
[1717490084239,6.45590582,3773.8,3773.7,0.018648]
[1717490088215,10.20590582,3773.8,3773.7,0.018648]
[1717490089006,13.40574582,3773.8,3773.7,0.018648]
[1717490089825,15.06534607,3773.8,3773.7,0.018648]
[1717490089961,13.40574582,3773.8,3773.7,0.018648]
[1717490090906,12.60674582,3773.8,3773.7,0.018648]
[1717490091068,13.40574582,3773.8,3773.7,0.018648]
[1717490097907,13.67109756,3773.8,3773.7,0.018648]
[1717490098204,11.02125756,3773.8,3773.7,0.018648]
[1717490099008,10.75590582,3773.8,3773.7,0.018648]
[1717490099221,7.76830582,3773.8,3773.7,0.018648]
[1717490099509,7.01830582,3773.8,3773.7,0.018648]
[1717490099910,6.21930582,3773.8,3773.7,0.018648]
[1717490100116,7.01830582,3773.8,3773.7,0.018648]
[1717490100486,6.21930582,3773.8,3773.7,0.018648]
[1717490100826,7.01830582,3773.8,3773.7,0.018648]
[1717490107665,6.21930582,3773.8,3773.7,0.018648]
[1717490107811,6.44746182,3773.8,3773.7,0.018648]
[1717490115136,8.86846182,3773.8,3773.7,0.018648]
[1717490115835,9.61846182,3773.8,3773.7,0.018648]
[1717490117621,11.28198921,3773.8,3773.7,0.018648]
[1717490121171,11.28239906,3773.8,3773.7,0.018648]
[1717490121327,12.86973498,3773.8,3773.7,0.018648]
[1717490121861,13.41973498,3773.8,3773.7,0.018648]
[1717490122027,11.75579774,3773.8,3773.7,0.018648]
[1717490125207,13.41992448,3773.8,3773.7,0.018648]
[1717490125331,11.75579774,3773.8,3773.7,0.018648]
[1717490131680,14.40563774,3773.8,3773.7,0.018648]
[1717490131884,16.34787769,3773.8,3773.7,0.018648]
[1717490132181,14.40563774,3773.8,3773.7,0.018648]
[1717490133162,11.75579774,3773.8,3773.7,0.018648]
[1717490133943,10.47808492,3773.8,3773.7,0.018648]
[1717490134147,11.27708492,3773.8,3773.7,0.018648]
[1717490134371,10.72708492,3773.8,3773.7,0.018648]
[1717490134575,7.98579774,3773.8,3773.7,0.018648]
[1717490134771,8.78479774,3773.8,3773.7,0.018648]
[1717490135054,5.64846182,3773.8,3773.7,0.018648]
[1717490135254,6.44746182,3773.8,3773.7,0.018648]
[1717490140408,5.64846182,3773.8,3773.7,0.018648]
[1717490140575,6.44746182,3773.8,3773.7,0.018648]
[1717490143814,5.64846182,3773.8,3773.7,0.018648]
[1717490144020,6.44746182,3773.8,3773.7,0.018648]
[1717490145308,2.64962,3774.2,3773.7,0.018648]
[1717490145530,3.0,3774.1,3773.7,0.018648]
[1717490145681,0.799,3773.8,3773.7,0.018648]
[1717490147214,0.799,3773.9,3773.7,0.018648]
[1717490149192,3.0,3774.1,3773.7,0.018648]
[1717490149399,0.799,3773.9,3773.7,0.018648]
[1717490150295,3.0,3774.5,3773.8,2.4974]
[1717490150495,0.799,3774.0,3773.8,2.4974]
[1717490151822,3.0,3774.5,3773.8,2.4974]
[1717490151982,0.799,3774.1,3773.8,2.4974]
[1717490153323,0.799,3774.2,3773.8,2.4974]
[1717490153519,0.799,3774.2,3773.8,3.0139958]
[1717490156530,0.799,3774.2,3773.8,2.4974]
[1717490157527,3.0,3774.5,3773.8,2.4974]
[1717490157733,0.799,3774.1,3773.8,2.4974]
[1717490158623,0.799,3774.2,3773.8,2.4974]